bitfinex-derivatives/quotes_BTCF0:USTF0_20251202
["timestamp","ask_amount","ask_price","bid_price","bid_amount"]
[1764686306773,0.02793652,88703.0,88702.0,0.0112733]
[1764686306974,0.02793652,88703.0,88702.0,0.6538133]
[1764686307482,0.02795798,88703.0,88696.0,0.3618]
[1764686307781,0.0112724,88709.0,88707.0,0.0112727]
[1764686307983,0.02795749,88708.0,88707.0,0.0112727]
[1764686308675,0.02795749,88708.0,88707.0,0.6538127]
[1764686309774,0.02995749,88708.0,88707.0,0.64254]
[1764686309983,0.04122999,88708.0,88707.0,0.64254]
[1764686310189,0.02995749,88708.0,88707.0,0.64254]
[1764686311791,0.00216045,88708.0,88707.0,0.64354]
[1764686311974,0.09159752,88727.0,88707.0,0.64354]
[1764686311975,0.05990056,88726.0,88725.0,0.64254]
[1764686312292,0.16786352,88742.0,88725.0,0.3608]
[1764686312591,0.06042453,88736.0,88735.0,0.6538091]
[1764686312771,0.0112689,88738.0,88735.0,0.64254]
[1764686313082,0.06042291,88742.0,88733.0,0.3608]
[1764686313083,0.0112691,88735.0,88733.0,0.3608]
[1764686313479,0.0112691,88735.0,88734.0,0.29064]
[1764686313877,0.60868,88734.0,88733.0,0.3608]
[1764686314073,0.3060899,88729.0,88728.0,0.00016911]
[1764686314278,0.6199499,88729.0,88728.0,0.00016911]
[1764686314474,0.0112699,88729.0,88728.0,0.00016911]
[1764686314688,0.0112692,88734.0,88731.0,0.0112696]
[1764686314884,0.0112699,88729.0,88728.0,0.00016911]
[1764686315085,0.0112699,88729.0,88728.0,0.01143911]
[1764686315478,0.0112699,88729.0,88728.0,0.00016911]
[1764686315681,0.6199499,88729.0,88728.0,0.00016911]
[1764686315885,0.6219499,88729.0,88728.0,0.00116911]
[1764686316290,0.3080899,88729.0,88728.0,0.00116911]
[1764686317691,0.6219499,88729.0,88728.0,0.00116911]
[1764686317985,0.70177352,88729.0,88728.0,0.00116911]
[1764686318189,0.6219499,88729.0,88728.0,0.00116911]
[1764686318489,0.70277598,88729.0,88728.0,0.00116911]
[1764686318895,0.6219499,88729.0,88728.0,0.00116911]
[1764686319795,0.002,88729.0,88728.0,0.96495911]
[1764686320595,0.002,88729.0,88728.0,1.46495911]
[1764686320889,0.002,88729.0,88728.0,1.96495911]
[1764686321090,0.06063953,88741.0,88740.0,0.0112685]
[1764686321394,0.06080864,88745.0,88744.0,0.59172]
[1764686321588,0.00016911,88745.0,88744.0,0.59172]
[1764686321894,0.011268,88744.0,88741.0,0.3608]
[1764686322194,0.60868,88742.0,88741.0,0.3720683]
[1764686322379,0.07190753,88744.0,88741.0,0.3720683]
[1764686322587,0.07190753,88744.0,88743.0,0.59172]
[1764686322785,0.011268,88744.0,88743.0,0.59172]
[1764686323196,0.016268,88744.0,88743.0,0.59172]
[1764686323383,0.07688351,88744.0,88743.0,0.59172]
[1764686323682,0.06561551,88744.0,88743.0,0.59172]
[1764686323883,0.006,88744.0,88743.0,0.59172]
[1764686324079,0.0325571,88744.0,88743.0,0.59172]
[1764686325389,0.0315571,88744.0,88743.0,0.59172]
[1764686325586,0.0097495,88744.0,88743.0,0.59172]
[1764686326189,0.0097495,88744.0,88743.0,1.09172]
[1764686326386,0.00016911,88745.0,88744.0,0.602988]
[1764686326582,0.0112672,88750.0,88744.0,0.011268]
[1764686326788,0.0112672,88750.0,88749.0,0.3608]
[1764686326989,0.0884165,88755.0,88749.0,0.3608]
[1764686326990,0.0112669,88753.0,88752.0,0.59172]
[1764686328682,0.0884165,88755.0,88749.0,0.3608]
[1764686328683,0.6199472,88750.0,88749.0,0.3608]
[1764686329093,0.0112668,88754.0,88753.0,0.59172]
[1764686329500,0.00016901,88761.0,88756.0,0.59172]
[1764686329801,0.011266,88760.0,88759.0,0.6029859]
[1764686330191,0.29482,88758.0,88757.0,0.3608]
[1764686330490,0.60868,88758.0,88757.0,0.3608]
[1764686330685,0.011266,88760.0,88759.0,0.59172]
[1764686330886,0.00016901,88761.0,88760.0,0.6029859]
[1764686331288,0.00016901,88761.0,88760.0,0.59172]
[1764686331489,0.60868,88758.0,88757.0,0.3608]
[1764686332098,0.0122659,88760.0,88759.0,0.59172]
[1764686332291,0.00116901,88761.0,88760.0,0.6029859]
[1764686332495,0.00216901,88761.0,88760.0,0.7707259]
[1764686333003,0.00116901,88761.0,88760.0,0.7707259]
[1764686333305,0.00116901,88761.0,88760.0,0.6029859]
[1764686333796,0.01143481,88761.0,88760.0,0.59172]
[1764686334212,0.00016901,88761.0,88760.0,0.59172]
[1764686334704,0.00116901,88761.0,88760.0,0.59172]
[1764686335100,0.00216901,88761.0,88760.0,0.59172]
[1764686335306,0.29698901,88761.0,88760.0,0.59172]
[1764686335902,0.00216901,88761.0,88760.0,0.59172]
[1764686336202,0.06061551,88786.0,88784.0,0.0112629]
[1764686336395,0.06061551,88796.0,88789.0,0.0112623]
[1764686336597,0.06061551,88796.0,88768.0,0.0112649]
[1764686336598,0.08920238,88796.0,88787.0,0.59172]
[1764686336796,0.0112623,88789.0,88787.0,0.59172]
[1764686336992,0.0112623,88789.0,88785.0,0.3608]
[1764686336993,0.60868,88786.0,88785.0,0.3608]
[1764686337193,0.29482,88782.0,88781.0,0.0112633]
[1764686337511,0.0112623,88789.0,88788.0,0.59172]
[1764686337905,0.011262,88792.0,88791.0,0.59172]
[1764686338116,0.00016901,88794.0,88790.0,0.011262]
[1764686338117,0.00016901,88794.0,88793.0,0.59172]
[1764686339102,0.00016901,88794.0,88793.0,0.95252]
[1764686339303,0.18445,88816.0,88805.0,0.6029802]
[1764686339503,0.0112599,88809.0,88805.0,0.9637802]
[1764686339805,0.30636161,88806.0,88805.0,0.95252]
[1764686340003,0.30636161,88806.0,88805.0,0.3608]
[1764686340004,0.62022161,88806.0,88805.0,0.3608]
[1764686340410,0.62022161,88806.0,88805.0,0.95252]
[1764686340411,0.02457127,88806.0,88805.0,0.95252]
[1764686340609,0.00028151,88806.0,88805.0,0.95252]
[1764686340809,0.00128151,88806.0,88805.0,0.95252]
[1764686341711,0.08085586,88839.0,88805.0,0.95252]
[1764686341712,0.3608,88840.0,88813.0,0.0112592]
[1764686341900,0.0112564,88836.0,88835.0,0.29064]
[1764686342100,0.0112552,88845.0,88839.0,0.0112559]
[1764686342311,0.3608,88849.0,88845.0,0.29064]
[1764686342611,0.0112546,88850.0,88845.0,0.95252]
[1764686342808,0.01153639,88846.0,88845.0,0.95252]
[1764686343006,0.29510139,88846.0,88845.0,0.29064]
[1764686343208,0.0112554,88843.0,88837.0,0.01142501]
[1764686343409,0.0112559,88840.0,88837.0,0.01142501]
[1764686343608,0.0112559,88840.0,88839.0,0.26179]
[1764686343798,0.00028139,88846.0,88839.0,0.26179]
[1764686344002,0.00028139,88846.0,88837.0,0.00016891]
[1764686344003,0.0112552,88845.0,88844.0,0.52649]
[1764686344204,0.00028139,88846.0,88844.0,0.52649]
[1764686344412,0.00028139,88846.0,88845.0,0.8985452]
[1764686344603,0.00028139,88846.0,88845.0,1.0048952]
[1764686344802,0.08818221,88862.0,88857.0,0.0112535]
[1764686345002,0.26613,88861.0,88860.0,0.3608]
[1764686345209,0.18897,88860.0,88845.0,0.3608]
[1764686345498,0.0112547,88849.0,88846.0,0.011255]
[1764686345702,0.0112547,88849.0,88845.0,0.3608]
[1764686346000,0.18897,88860.0,88845.0,0.88729]
[1764686346001,0.004,88846.0,88845.0,0.88729]
[1764686346199,0.004,88846.0,88845.0,0.99364]
[1764686346414,0.27660006,88872.0,88868.0,0.0112522]
[1764686346606,0.27660006,88872.0,88865.0,0.3608]
[1764686346798,0.28785186,88872.0,88865.0,0.3608]
[1764686346997,0.3608,88881.0,88869.0,0.0112521]
[1764686347216,0.18473126,88886.0,88873.0,0.3608]
[1764686347412,0.27429325,88886.0,88873.0,0.3608]
[1764686347708,0.0112518,88872.0,88865.0,0.0112526]
[1764686347900,0.0112522,88869.0,88868.0,0.26179]
[1764686348303,0.0112522,88869.0,88868.0,0.52649]
[1764686348902,0.0112522,88869.0,88868.0,0.26179]
[1764686348903,0.2773822,88869.0,88868.0,0.26179]
[1764686349513,0.001,88869.0,88868.0,0.52649]
[1764686350010,0.002,88869.0,88868.0,0.52649]
[1764686350214,0.002,88869.0,88868.0,0.88729]
[1764686350405,0.00028126,88886.0,88885.0,0.52649]
[1764686350806,0.0112505,88882.0,88874.0,0.0112514]
[1764686351013,0.0112505,88882.0,88873.0,0.0112515]
[1764686351214,0.26613,88879.0,88878.0,0.26179]
[1764686351510,0.0112513,88876.0,88871.0,0.26179]
[1764686351716,0.3608,88880.0,88872.0,0.52649]
[1764686351917,0.0112517,88872.0,88868.0,0.8608]
[1764686352100,0.26613,88869.0,88868.0,0.8608]
[1764686352303,0.0112517,88872.0,88868.0,0.88729]
[1764686352507,0.00328126,88886.0,88885.0,0.52649]
[1764686352815,0.00028126,88886.0,88885.0,0.52649]
[1764686353417,0.00028126,88886.0,88878.0,0.3608]
[1764686353418,0.55306,88879.0,88868.0,0.3608]
[1764686353612,0.2773819,88871.0,88868.0,0.3608]
[1764686353807,0.0112515,88875.0,88868.0,0.88729]
[1764686354007,0.0112517,88873.0,88872.0,0.52649]
[1764686355200,0.18925126,88886.0,88868.0,0.3608]
[1764686355416,0.0112506,88882.0,88881.0,0.26179]
[1764686355819,0.0112501,88885.0,88884.0,0.26179]
[1764686356014,0.0112501,88885.0,88884.0,0.5377402]
[1764686356210,0.00028126,88886.0,88885.0,0.52649]
[1764686356817,0.27766126,88886.0,88876.0,0.3608]
[1764686357005,0.18925126,88886.0,88876.0,0.3608]
[1764686357200,0.0112501,88885.0,88876.0,0.3608]
[1764686357605,0.0112505,88882.0,88876.0,0.3608]
[1764686357816,0.0112511,88878.0,88877.0,0.52649]
[1764686358012,0.00028126,88886.0,88877.0,0.52649]
[1764686358206,0.00028126,88886.0,88880.0,0.0112507]
[1764686358207,0.18925126,88886.0,88880.0,0.0112507]
[1764686358407,0.0112501,88885.0,88882.0,0.0112504]
[1764686358609,0.0112509,88879.0,88876.0,0.3608]
[1764686358809,0.0112509,88879.0,88878.0,0.52649]
[1764686359401,0.0112509,88879.0,88876.0,0.3608]
[1764686359402,0.5643109,88879.0,88876.0,0.3608]
[1764686359716,0.55306,88877.0,88876.0,0.3608]
[1764686360121,0.0112509,88879.0,88878.0,0.26179]
[1764686360307,0.0122509,88879.0,88878.0,0.26179]
[1764686360912,0.2773821,88869.0,88868.0,0.88729]
[1764686361110,0.5643121,88869.0,88868.0,0.3608]
[1764686361610,0.5643121,88869.0,88841.0,0.5326]
[1764686361611,0.18897,88855.0,88828.0,0.52649]
[1764686361805,0.3608,88829.0,88828.0,0.52649]
[1764686362011,0.0112587,88818.0,88817.0,0.52649]
[1764686362614,0.0112602,88806.0,88805.0,0.52649]
[1764686362919,0.0112592,88814.0,88809.0,0.52649]
[1764686363224,0.3608,88821.0,88815.0,0.0112589]
[1764686363622,0.3608,88821.0,88818.0,0.0112586]
[1764686363924,0.3608,88821.0,88820.0,0.52649]
[1764686364510,0.00016847,88826.0,88825.0,0.5377477]
[1764686365308,0.3608,88838.0,88837.0,0.5377462]
[1764686366115,0.3608,88838.0,88837.0,1.0377462]
[1764686366515,0.3608,88838.0,88837.0,1.5377462]
[1764686366924,0.3608,88838.0,88837.0,1.5397462]
[1764686367225,0.3608,88847.0,88846.0,0.537745]
[1764686368524,0.91386,88847.0,88838.0,0.00016891]
[1764686369026,0.91386,88839.0,88838.0,0.00016891]
[1764686369519,0.0112589,88816.0,88815.0,0.52649]
[1764686369721,0.0112593,88812.0,88811.0,0.3608]
[1764686369928,0.0112593,88812.0,88811.0,0.62259]
[1764686370220,0.0112593,88812.0,88796.0,8.768e-05]
[1764686370425,0.3608,88798.0,88796.0,8.768e-05]
[1764686370620,0.0112613,88797.0,88796.0,0.52657768]
[1764686370823,0.0112621,88791.0,88788.0,0.00016891]
[1764686371126,0.91386,88789.0,88788.0,0.00016891]
[1764686371318,0.0112648,88769.0,88757.0,0.0112662]
[1764686371516,0.0112648,88769.0,88755.0,0.66969]
[1764686371814,0.0112648,88769.0,88754.0,0.3608]
[1764686371815,0.26613,88767.0,88754.0,0.3608]
[1764686372024,0.26613,88767.0,88739.0,0.53256]
[1764686372025,0.55314768,88767.0,88746.0,0.3608]
[1764686372221,0.55314768,88767.0,88758.0,0.00016891]
[1764686372915,8.768e-05,88767.0,88762.0,0.0112656]
[1764686373116,8.768e-05,88767.0,88766.0,0.55464164]
[1764686373322,0.54305278,88767.0,88766.0,0.00028164]
[1764686373523,0.54305278,88767.0,88766.0,0.00228164]
[1764686374028,0.54305278,88767.0,88766.0,0.00028164]
[1764686374322,0.54305278,88767.0,88758.0,0.00016891]
[1764686374323,0.5429661,88759.0,88758.0,0.00016891]
[1764686374621,0.36088225,88759.0,88758.0,0.55452891]
[1764686375822,8.225e-05,88759.0,88758.0,0.55452891]
[1764686376913,8.225e-05,88759.0,88758.0,1.05452891]
[1764686377116,8.225e-05,88759.0,88758.0,1.05852891]
[1764686377530,0.53178225,88759.0,88758.0,0.50416891]
[1764686378333,8.225e-05,88759.0,88758.0,0.55852891]
[1764686378826,8.225e-05,88759.0,88758.0,0.55452891]
[1764686379039,8.225e-05,88759.0,88758.0,0.55752891]
[1764686379720,8.225e-05,88759.0,88758.0,0.55652891]
[1764686380033,8.225e-05,88759.0,88758.0,0.27709891]
[1764686380233,8.225e-05,88759.0,88758.0,0.00216891]
[1764686380431,0.27738225,88759.0,88758.0,0.00216891]
[1764686380634,0.89258225,88759.0,88758.0,0.00216891]
[1764686380823,0.53178225,88759.0,88758.0,0.00216891]
[1764686381025,0.89258225,88759.0,88758.0,0.00216891]
[1764686382021,0.0112667,88754.0,88748.0,0.0112674]
[1764686382225,0.3608,88751.0,88741.0,0.3608]
[1764686382430,0.0112675,88748.0,88742.0,0.0112682]
[1764686382719,0.3608,88751.0,88732.0,0.3608]
[1764686382720,0.3608,88743.0,88732.0,0.3608]
[1764686382924,8.768e-05,88742.0,88741.0,0.27493]
[1764686383124,8.768e-05,88742.0,88741.0,0.55436]
[1764686383534,8.768e-05,88742.0,88741.0,0.55836]
[1764686384030,8.768e-05,88742.0,88741.0,0.55436]
[1764686384337,8.768e-05,88742.0,88741.0,0.55836]
[1764686387227,8.768e-05,88742.0,88741.0,0.27893]
[1764686387228,0.27738768,88742.0,88741.0,0.27893]
[1764686387629,8.768e-05,88742.0,88741.0,0.27893]
[1764686387828,0.27738768,88742.0,88741.0,0.004]
[1764686388227,0.53178768,88742.0,88741.0,0.004]
[1764686389843,0.53178768,88742.0,88739.0,0.0112685]
[1764686390341,0.5317,88740.0,88739.0,0.0112685]
[1764686390537,0.5317,88740.0,88723.0,0.3608]
[1764686390745,0.5429698,88730.0,88728.0,0.0112699]
[1764686391132,0.5317,88730.0,88728.0,0.0112699]
[1764686392150,0.5317,88727.0,88716.0,0.00012057]
[1764686392334,0.5317,88727.0,88722.0,0.0112707]
[1764686392535,0.5317,88723.0,88722.0,0.0112707]
[1764686392735,0.8925,88723.0,88722.0,0.0112707]
[1764686393444,0.3608,88723.0,88722.0,0.5656307]
[1764686393943,0.8925,88723.0,88722.0,0.0112707]
[1764686394242,0.8935,88723.0,88722.0,0.0172707]
[1764686394446,0.8935,88723.0,88722.0,0.006]
[1764686394831,0.5429714,88717.0,88716.0,0.00012057]
[1764686395041,0.5317,88717.0,88716.0,0.00012057]
[1764686395749,0.5317,88715.0,88714.0,0.00016901]
[1764686396843,0.89263734,88715.0,88714.0,0.55452901]
[1764686397046,0.89263734,88715.0,88714.0,0.00016901]
[1764686397639,1.51263734,88715.0,88714.0,0.00016901]
[1764686398243,1.52390904,88715.0,88714.0,0.00016901]
[1764686398548,0.5317,88703.0,88702.0,0.0112733]
[1764686398845,0.8925,88703.0,88702.0,0.0112733]
[1764686399637,0.8925,88703.0,88694.0,0.36096901]
[1764686399638,0.5317,88695.0,88694.0,0.00016901]
[1764686399841,0.8925,88695.0,88694.0,0.00016901]
[1764686400158,0.8925,88695.0,88686.0,0.0502819]
[1764686400159,0.5429752,88687.0,88686.0,0.0502819]
[1764686400450,0.9037752,88687.0,88686.0,0.04087689]
[1764686400748,0.8925,88687.0,88686.0,0.04087689]
[1764686401046,0.00011542,88695.0,88694.0,0.5656343]
[1764686401346,0.00011542,88695.0,88694.0,0.9264343]
[1764686401569,0.27741542,88695.0,88694.0,0.55436]
[1764686401766,0.2773,88687.0,88686.0,0.04087689]
[1764686401959,0.5317,88687.0,88686.0,0.04087689]
[1764686402269,0.5317,88687.0,88665.0,0.89385776]
[1764686402270,0.5429762,88679.0,88665.0,0.00013776]
[1764686402459,1.4367362,88679.0,88665.0,0.00013776]
[1764686402661,0.4931679,88666.0,88665.0,0.00013776]
[1764686402854,1.38697257,88666.0,88665.0,0.00013776]
[1764686403470,0.64743,88647.0,88646.0,0.00028202]
[1764686403662,1.54115,88647.0,88646.0,0.00028202]
[1764686403867,1.00823,88647.0,88646.0,0.00028202]
[1764686404063,0.3608,88647.0,88646.0,0.50049202]
[1764686404263,0.59425,88647.0,88646.0,0.50049202]
[1764686404464,0.00016921,88655.0,88654.0,0.50021]
[1764686404762,0.48189,88647.0,88646.0,0.00028202]
[1764686404960,0.84269,88647.0,88646.0,0.00028202]
[1764686405371,0.3608,88649.0,88648.0,0.50021]
[1764686405558,0.8938,88649.0,88648.0,0.50021]
[1764686405763,0.00031387,88655.0,88654.0,0.24432]
[1764686405962,0.48189,88653.0,88648.0,0.0112802]
[1764686406163,0.48189,88653.0,88646.0,0.00028202]
[1764686406164,0.48189,88647.0,88646.0,0.00028202]
[1764686406359,0.84269,88647.0,88646.0,0.00028202]
[1764686407071,0.8428344,88647.0,88646.0,0.00028202]
[1764686407371,0.2447326,88629.0,88614.0,0.3608]
[1764686407561,0.3608,88627.0,88618.0,0.0112839]
[1764686408056,0.3608,88627.0,88614.0,0.3608]
[1764686408258,0.3608,88627.0,88626.0,0.50021]
[1764686408463,0.00010333,88628.0,88627.0,0.5114929]
[1764686408769,0.3608,88644.0,88643.0,0.5114908]
[1764686409071,0.79312,88655.0,88654.0,0.50021]
[1764686409369,0.3608,88664.0,88663.0,0.24432]
[1764686409578,0.3608,88664.0,88663.0,0.50021]
[1764686409872,0.59434518,88664.0,88663.0,0.24432]
[1764686410071,0.36089518,88664.0,88663.0,0.50021]
[1764686410572,9.518e-05,88664.0,88663.0,0.50021]
[1764686410971,0.00016921,88672.0,88671.0,0.50021]
[1764686411556,0.00016921,88672.0,88671.0,0.5114873]
[1764686411959,0.00027723,88672.0,88671.0,0.50021]
[1764686412167,0.48216723,88672.0,88671.0,0.5]
[1764686412461,1.01628723,88672.0,88671.0,0.5]
[1764686412863,0.48316723,88672.0,88671.0,0.45]
[1764686413067,1.01628723,88672.0,88671.0,0.45]
[1764686413263,1.37708723,88672.0,88671.0,0.41078884]
[1764686413674,0.48189,88657.0,88656.0,0.0112791]
[1764686413870,0.8428114,88657.0,88656.0,0.0112791]
[1764686414071,0.48189,88656.0,88655.0,0.00016921]
[1764686414969,0.48189,88656.0,88655.0,4.11e-06]
[1764686415169,1.01497,88656.0,88655.0,4.11e-06]
[1764686415372,1.41497,88656.0,88655.0,4.11e-06]
[1764686415681,0.48189,88627.0,88626.0,0.3608]
[1764686415866,0.23345,88615.0,88613.0,0.0112846]
[1764686416065,0.23345,88614.0,88613.0,0.0112846]
[1764686416873,0.0112842,88617.0,88610.0,0.011285]
[1764686417077,0.48189,88607.0,88603.0,0.3608]
[1764686417278,0.48197516,88607.0,88603.0,0.3608]
[1764686417473,0.48197516,88607.0,88600.0,0.01137673]
[1764686417674,0.48197516,88607.0,88603.0,0.0112859]
[1764686418179,0.48197516,88607.0,88600.0,9.043e-05]
[1764686418474,0.49326056,88607.0,88600.0,9.043e-05]
[1764686418973,0.48197516,88607.0,88606.0,0.01256765]
[1764686419182,1.01613516,88607.0,88606.0,0.00128215]
[1764686419774,1.01513516,88607.0,88606.0,0.00028215]
[1764686419963,0.0112864,88600.0,88592.0,0.0112873]
[1764686420167,0.3608,88595.0,88594.0,0.5114971]
[1764686420978,0.84269,88595.0,88594.0,0.0112871]
[1764686421172,0.84269,88595.0,88584.0,0.3608]
[1764686421369,0.84269,88595.0,88594.0,0.0112871]
[1764686421668,0.00016931,88603.0,88600.0,0.0112863]
[1764686421669,1.01509,88601.0,88600.0,0.0112863]
[1764686421863,0.00016931,88603.0,88600.0,0.2556063]
[1764686422069,0.00016931,88603.0,88602.0,0.50021]
[1764686422270,0.48189,88602.0,88601.0,0.0112861]
[1764686422478,0.00016931,88603.0,88602.0,0.50021]
[1764686422672,0.48189,88598.0,88597.0,0.0112866]
[1764686423376,0.36096931,88603.0,88600.0,0.0112862]
[1764686423377,0.23345,88601.0,88600.0,0.0112862]
[1764686423675,0.23345,88601.0,88594.0,0.3618]
[1764686423676,0.23345,88597.0,88596.0,0.0112868]
[1764686423884,0.48189,88597.0,88596.0,0.0112868]
[1764686424061,0.23345,88595.0,88594.0,0.3618]
[1764686424465,0.36196931,88603.0,88602.0,0.50021]
[1764686424765,0.00116931,88603.0,88602.0,0.86101]
[1764686425283,0.00016931,88603.0,88602.0,0.86101]
[1764686425478,0.00016931,88603.0,88602.0,0.50021]
[1764686425684,0.3608,88622.0,88606.0,0.11635]
[1764686425981,0.3608,88622.0,88618.0,0.0112839]
[1764686426377,0.0112836,88621.0,88618.0,0.0112839]
[1764686426584,0.011284,88618.0,88611.0,0.00016931]
[1764686426883,0.4931748,88612.0,88611.0,0.00016931]
[1764686427273,1.0264148,88612.0,88611.0,0.00016931]
[1764686427581,0.48189,88595.0,88594.0,0.3608]
[1764686427802,0.84269,88602.0,88601.0,0.0112862]
[1764686428080,0.36091689,88602.0,88601.0,0.5114962]
[1764686428273,0.36091689,88602.0,88601.0,0.0112862]
[1764686428274,0.84280689,88602.0,88601.0,0.0112862]
[1764686428777,0.59436689,88602.0,88601.0,0.2556062]
[1764686429175,0.59436689,88602.0,88601.0,0.5114962]
[1764686429176,0.36091689,88602.0,88601.0,0.5114962]
[1764686429580,0.36191689,88602.0,88601.0,0.5114962]
[1764686429784,0.00111689,88602.0,88601.0,0.5114962]
[1764686430578,0.00111689,88602.0,88601.0,1.0124962]
[1764686432283,0.23456689,88602.0,88601.0,1.0124962]
[1764686432888,0.48300689,88602.0,88601.0,0.501]
[1764686433087,0.48300689,88602.0,88601.0,0.001]
[1764686433882,0.23536,88598.0,88581.0,0.02952346]
[1764686434079,0.3720879,88587.0,88586.0,0.21765]
[1764686434285,0.0112885,88584.0,88583.0,0.21765]
[1764686434582,0.0112885,88584.0,88579.0,0.3608]
[1764686434583,0.00011489,88587.0,88584.0,0.0112883]
[1764686434779,0.0112881,88586.0,88584.0,0.0112883]
[1764686435082,0.00011489,88587.0,88584.0,0.0112883]
[1764686435300,0.46966,88585.0,88584.0,0.0112883]
[1764686435880,0.46966,88585.0,88581.0,0.001]
[1764686435881,0.60728,88582.0,88581.0,0.001]
[1764686436686,0.46966,88580.0,88579.0,0.0112889]
[1764686436987,0.001,88585.0,88584.0,0.0112883]
[1764686437282,0.001,88585.0,88584.0,0.4548783]
[1764686438778,0.001,88585.0,88584.0,0.9548783]
[1764686439388,0.00011489,88587.0,88586.0,0.44359]
[1764686440886,0.00011489,88587.0,88586.0,0.94359]
[1764686441082,0.00111489,88587.0,88586.0,0.94359]
[1764686441486,0.00111489,88587.0,88586.0,1.44359]
[1764686441890,0.47077489,88587.0,88586.0,1.44459]
[1764686442083,0.47077489,88587.0,88586.0,1.21865]
[1764686442278,0.47077489,88587.0,88586.0,0.71865]
[1764686442481,0.47077489,88587.0,88586.0,0.501]
[1764686443992,0.47077489,88587.0,88586.0,0.001]
[1764686444491,0.46966,88572.0,88571.0,0.02952346]
[1764686444793,0.46966,88570.0,88569.0,0.0112902]
[1764686445481,0.46966,88567.0,88566.0,0.00028228]
[1764686445681,0.46966,88567.0,88566.0,0.21793228]
[1764686445887,0.00011335,88572.0,88571.0,0.45488]
[1764686446188,0.23441335,88572.0,88571.0,0.45488]
[1764686446394,0.83057335,88572.0,88571.0,0.01129]
[1764686446690,0.83057335,88572.0,88571.0,0.002]
[1764686446691,0.83157335,88572.0,88571.0,0.002]
[1764686447282,0.46966,88567.0,88566.0,0.00028228]
[1764686447786,0.46966,88570.0,88569.0,0.0112902]
[1764686448580,0.46966,88570.0,88569.0,0.2289402]
[1764686448790,0.46966,88570.0,88569.0,0.4548802]
[1764686448989,0.2343,88570.0,88569.0,0.4548802]
[1764686449380,0.36191335,88572.0,88571.0,0.44359]
[1764686450193,0.83157335,88572.0,88571.0,0.44359]
[1764686450393,0.36191335,88572.0,88571.0,0.44359]
[1764686450594,0.36191335,88572.0,88571.0,0.44459]
[1764686450795,0.83157335,88572.0,88571.0,0.001]
[1764686451102,0.83057335,88572.0,88571.0,0.001]
[1764686451490,0.00011335,88572.0,88571.0,0.44459]
[1764686451992,5e-08,88572.0,88571.0,0.46223954]
[1764686452298,0.3608,88580.0,88579.0,0.44359]
[1764686452599,0.3608,88590.0,88589.0,0.0112877]
[1764686452896,0.8417476,88590.0,88579.0,0.5]
[1764686453087,0.46966,88588.0,88587.0,0.0112879]
[1764686453799,0.3608,88600.0,88587.0,0.0112879]
[1764686453999,0.5951,88600.0,88599.0,0.4548764]
[1764686454297,0.46966,88597.0,88596.0,0.0112867]
[1764686455791,0.46966,88597.0,88596.0,0.2289367]
[1764686456304,0.3618,88600.0,88599.0,0.0112864]
[1764686456505,0.3618,88600.0,88599.0,0.4548764]
[1764686456907,0.46966,88596.0,88595.0,0.0112868]
[1764686457996,0.46966,88593.0,88592.0,0.0112873]
[1764686458591,0.001,88596.0,88595.0,0.2289369]
[1764686458790,0.001,88596.0,88595.0,0.4548769]
[1764686459399,0.2353,88596.0,88595.0,0.4548769]
[1764686459992,0.47066,88596.0,88595.0,0.0112869]
[1764686460191,0.47066,88596.0,88588.0,0.00016931]
[1764686460192,0.4809477,88589.0,88588.0,0.00016931]
[1764686460398,1.2417477,88589.0,88588.0,8.415e-05]
[1764686460598,0.8417477,88589.0,88588.0,8.415e-05]
[1764686461011,1.7748677,88589.0,88588.0,4.15e-06]
[1764686462401,0.0112905,88567.0,88566.0,0.00028228]
[1764686462608,1.3748705,88567.0,88566.0,0.00028228]
[1764686462806,0.3608,88567.0,88566.0,0.45063228]
[1764686463012,0.59691,88571.0,88570.0,0.0112901]
[1764686463206,0.3608,88571.0,88570.0,0.4616401]
[1764686463415,0.3608,88571.0,88570.0,0.49152032]
[1764686463601,0.3608,88571.0,88570.0,0.87929027]
[1764686463914,0.47738931,88575.0,88574.0,0.2377096]
[1764686464099,0.23627931,88575.0,88574.0,0.2377096]
[1764686464298,0.00016931,88575.0,88574.0,0.4616396]
[1764686464496,0.3608,88590.0,88589.0,0.0112877]
[1764686464715,0.47722,88607.0,88606.0,0.0112855]
[1764686465007,1.01034,88615.0,88611.0,0.0112848]
[1764686465204,0.47722,88612.0,88600.0,0.3608]
[1764686465404,0.23611,88606.0,88605.0,0.0112856]
[1764686465810,0.0112849,88612.0,88605.0,0.0112856]
[1764686466008,0.00016931,88614.0,88613.0,0.45035]
[1764686466202,0.83802,88637.0,88636.0,0.0112817]
[1764686466402,0.83802,88637.0,88623.0,0.3608]
[1764686466699,0.23611,88644.0,88643.0,0.0112807]
[1764686467098,0.23611,88644.0,88639.0,0.0112812]
[1764686467515,0.3608,88649.0,88635.0,0.45051931]
[1764686467715,0.3720801,88649.0,88639.0,0.0112813]
[1764686467904,0.3720801,88649.0,88635.0,0.13344931]
[1764686467905,0.0112805,88646.0,88635.0,0.13344931]
[1764686468109,0.3608,88640.0,88635.0,0.00016931]
[1764686468304,0.47722,88636.0,88635.0,0.00016931]
[1764686469506,0.23811,88636.0,88635.0,0.00016931]
[1764686469702,0.0112826,88629.0,88620.0,0.0112837]
[1764686469904,0.47722,88615.0,88614.0,0.3608]
[1764686470111,0.47722,88602.0,88587.0,0.02984844]
[1764686470305,0.23611,88586.0,88585.0,0.3608]
[1764686470504,0.47722,88586.0,88585.0,0.3720882]
[1764686470707,0.47722,88586.0,88585.0,0.3608]
[1764686471006,0.0112886,88582.0,88577.0,0.36096931]
[1764686471316,0.49784,88592.0,88577.0,0.36096931]
[1764686471317,0.0112882,88586.0,88578.0,0.0112891]
[1764686471607,0.47722,88579.0,88578.0,0.0112891]
[1764686471808,0.47722,88578.0,88577.0,0.00016931]
[1764686472506,0.87722,88578.0,88577.0,0.00016931]
[1764686473309,0.87822,88578.0,88577.0,0.00016931]
[1764686474113,0.47722,88567.0,88566.0,0.00028228]
[1764686474315,1.37098,88567.0,88566.0,0.00028228]
[1764686474509,0.83802,88567.0,88566.0,0.00028228]
[1764686474715,1.37098,88567.0,88566.0,0.00028228]
[1764686475515,0.93035173,88567.0,88566.0,0.00028228]
[1764686475718,0.93035173,88567.0,88534.0,0.0112946]
[1764686475719,0.47722,88548.0,88534.0,0.0112946]
[1764686475910,1.37098,88548.0,88529.0,0.3608]